bitfinex/quotes_ETHUSD_20240709
["timestamp","ask_amount","ask_price","bid_price","bid_amount"]
[1720531855496,0.599581,3076.0,3074.7,7.02727]
[1720531855717,3.0,3076.0,3074.7,7.02727]
[1720531856023,2.4095,3076.1,3074.7,3.775]
[1720531856370,2.4095,3076.1,3074.4,3.25266]
[1720531856768,2.4095,3076.1,3074.4,3.25256]
[1720531857010,2.4095,3076.1,3074.2,3.775]
[1720531857011,5.937,3076.0,3074.2,3.775]
[1720531857171,3.0,3075.9,3074.2,3.775]
[1720531857375,0.55,3075.8,3074.2,3.775]
[1720531858410,0.55,3075.8,3073.2,3.775]
[1720531858411,5.387,3075.5,3073.2,3.775]
[1720531858611,5.387,3075.5,3073.5,3.25361]
[1720531858612,3.429,3075.3,3073.5,3.25361]
[1720531858812,5.7693,3075.2,3073.2,3.775]
[1720531859112,3.57693,3075.1,3073.2,3.775]
[1720531859316,0.55,3075.0,3073.2,3.775]
[1720531859519,0.55,3075.0,3073.2,7.02893]
[1720531859722,0.55,3075.0,3073.2,3.775]
[1720531859723,3.979,3075.0,3073.2,3.775]
[1720531859938,2.334,3074.8,3073.2,3.775]
[1720531860082,0.55,3074.7,3073.2,3.775]
[1720531860288,3.55,3074.7,3073.2,3.775]
[1720531860683,6.979,3074.7,3072.7,3.775]
[1720531860901,3.429,3074.5,3072.7,3.775]
[1720531861123,3.429,3074.3,3072.7,3.775]
[1720531861323,3.429,3074.3,3072.1,6.0482]
[1720531861523,7.225,3074.4,3072.1,9.3033]
[1720531861524,6.979,3074.2,3072.1,9.3033]
[1720531861687,2.447,3074.1,3072.1,6.0482]
[1720531862028,0.55,3074.0,3072.1,6.0482]
[1720531862320,3.55,3074.0,3072.1,6.0482]
[1720531862523,3.55,3074.0,3072.1,9.30322]
[1720531862725,0.5997,3073.9,3072.2,3.0]
[1720531863027,0.55,3073.8,3072.1,3.775]
[1720531863430,3.55,3073.8,3072.1,3.775]
[1720531864088,3.55,3073.8,3072.2,3.0]
[1720531864290,0.75787,3073.7,3072.6,3.775]
[1720531864490,0.55,3073.6,3072.6,3.775]
[1720531864692,0.5997,3073.9,3072.7,0.06508246]
[1720531865004,3.0,3074.0,3072.7,0.06508246]
[1720531865005,0.55,3073.8,3072.7,0.06508246]
[1720531865238,0.55,3073.9,3072.7,0.06508246]
[1720531865721,3.55,3073.9,3072.7,0.06508246]
[1720531865899,0.655,3073.8,3072.6,3.775]
[1720531866224,3.0,3073.8,3072.5,0.06507821]
[1720531866404,0.55,3073.9,3072.5,0.06507821]
[1720531870129,0.55,3073.9,3072.4,3.775]
[1720531871360,0.55,3073.9,3072.2,3.0]
[1720531871639,0.355,3073.8,3071.9,7.0303]
[1720531871802,0.69582573,3073.8,3071.9,3.775]
[1720531872007,0.55,3073.7,3071.9,3.775]
[1720531872207,0.55,3073.7,3071.9,7.03031]
[1720531872954,0.55,3073.7,3071.9,3.775]
[1720531873801,0.55,3073.7,3071.9,7.03028]
[1720531874656,3.55,3073.7,3071.9,7.03028]
[1720531874870,2.3622,3073.6,3071.9,10.28556]
[1720531875088,0.29122,3073.5,3071.9,10.28556]
[1720531875243,3.0,3073.5,3072.4,3.775]
[1720531875755,2.3622,3073.6,3072.4,3.775]
[1720531876132,2.3622,3073.6,3072.5,0.06508081]
[1720531876528,0.355,3073.8,3072.5,3.31974081]
[1720531876718,2.3622,3074.1,3073.0,2.834]
[1720531877259,2.328546,3074.1,3073.0,2.834]
[1720531879877,4.31985309,3074.0,3072.2,2.834]
[1720531880047,3.979,3073.9,3072.2,2.834]
[1720531880248,2.81958531,3073.8,3072.2,2.834]
[1720531880425,3.55,3073.7,3072.2,2.834]
[1720531881825,2.3715,3073.6,3072.2,2.834]
[1720531882028,0.55,3073.5,3072.2,2.834]
[1720531882373,3.0,3073.5,3072.2,2.834]
[1720531882584,3.83715,3073.5,3072.2,2.834]
[1720531882733,3.0,3073.4,3072.2,2.834]
[1720531883240,3.83715,3073.5,3072.2,2.834]
[1720531883448,0.55,3073.4,3072.2,2.834]
[1720531886230,3.83715,3073.5,3072.2,2.834]
[1720531886434,3.83715,3073.5,3072.3,0.06508838]
[1720531886626,3.83715,3073.5,3072.6,2.834]
[1720531886627,3.0,3073.5,3072.6,2.834]
[1720531886857,2.3715,3073.6,3072.6,2.834]
[1720531888142,3.0,3073.9,3072.6,2.834]
[1720531888353,0.55,3073.8,3072.6,2.834]
[1720531888667,3.55,3073.9,3072.6,2.834]
[1720531889545,3.55,3073.9,3072.7,0.06508241]
[1720531890547,3.0,3073.9,3072.7,0.06508241]
[1720531890957,2.4264,3074.7,3073.0,2.834]
[1720531891138,2.4264,3074.7,3073.1,0.06506641]
[1720531891336,0.24264,3074.6,3073.1,0.06506641]
[1720531891935,2.76706331,3074.7,3073.4,2.834]
[1720531893078,2.76706331,3074.7,3073.0,2.834]
[1720531893079,6.19606331,3074.7,3073.0,2.834]
[1720531893247,3.429,3074.5,3072.8,2.2795]
[1720531893775,5.57760633,3074.6,3072.6,2.834]
[1720531893776,5.912,3074.2,3072.6,2.834]
[1720531893937,3.55,3074.1,3072.6,2.834]
[1720531894138,3.55,3074.1,3072.4,2.4802]
[1720531894349,0.9462,3074.0,3072.4,2.4802]
[1720531894568,0.55,3073.9,3072.4,2.4802]
[1720531895146,2.3357,3073.8,3072.2,2.834]
[1720531895475,5.3357,3073.8,3072.2,2.834]
[1720531899348,2.2862,3074.3,3073.0,2.834]
[1720531899681,2.80866331,3074.7,3073.4,2.834]
[1720531899889,2.80866331,3074.7,3073.5,0.0650636]
[1720531900047,2.80866331,3074.7,3073.8,2.834]
[1720531900240,2.468,3074.7,3073.8,2.834]
[1720531900670,2.4992,3075.3,3073.8,2.834]
[1720531900988,0.90684227,3075.2,3073.8,2.834]
[1720531901152,0.34060423,3075.1,3073.8,2.834]
[1720531901947,2.83978351,3075.3,3074.6,2.834]
[1720531901948,0.34058351,3075.3,3074.6,2.834]
[1720531902160,0.3263,3075.7,3074.7,0.06503591]
[1720531902385,2.3114,3076.1,3075.0,2.834]
[1720531902544,2.813733,3076.8,3075.1,0.06502872]
[1720531902745,2.986853,3076.8,3075.1,0.06502872]
[1720531902983,3.76941171,3076.7,3075.1,0.06502872]
[1720531904379,3.429,3076.3,3074.4,3.773]
[1720531904597,3.429,3076.3,3074.3,2.4731]
[1720531904598,5.387,3076.3,3074.3,2.4731]
[1720531904883,3.429,3076.1,3074.3,2.4731]
[1720531905111,3.429,3075.9,3074.3,2.4731]
[1720531905480,3.55,3075.8,3074.3,2.4731]
[1720531905838,3.429,3075.6,3073.9,3.773]
[1720531905980,0.55,3075.5,3073.9,3.773]
[1720531906172,0.3979,3075.4,3073.9,3.773]
[1720531906375,0.55,3075.3,3073.8,2.3772]
[1720531907628,0.73810748,3075.4,3073.9,3.83805427]
[1720531907779,0.34020748,3075.4,3073.9,7.09123427]
[1720531908701,0.34020748,3075.4,3073.9,3.773]
[1720531909629,0.34020748,3075.4,3073.9,7.02616]
[1720531909795,0.34020748,3075.4,3074.0,0.06504388]
[1720531910117,0.34020748,3075.4,3074.4,3.773]
[1720531910321,0.34020748,3075.4,3074.5,3.31752107]
[1720531910677,0.34020748,3075.4,3074.6,2.4107]
[1720531911000,0.34020748,3075.4,3074.7,0.06503111]
[1720531912624,0.34020748,3075.4,3074.9,7.02507]
[1720531912778,0.34020748,3075.4,3075.0,0.06502451]
[1720531912979,0.34020748,3075.4,3075.0,3.25198]
[1720531913188,0.34020748,3075.4,3074.9,3.773]
[1720531913422,0.34020748,3075.4,3074.9,7.02512]
[1720531913601,0.34020748,3075.4,3075.0,3.25196]
[1720531913805,0.34020748,3075.4,3075.0,3.31698112]
[1720531914024,0.34020748,3075.4,3075.0,3.31695112]
[1720531914323,0.34020748,3075.4,3075.0,3.25193]
[1720531914628,0.34020748,3075.4,3074.9,3.773]
[1720531914629,0.34020748,3075.4,3075.1,3.25191]
[1720531916286,0.34020748,3075.4,3075.3,5.55181]
[1720531916596,0.34020748,3075.4,3075.3,8.86853286]
[1720531916793,2.3703,3077.3,3075.5,3.2515]
[1720531917040,0.3401735,3076.0,3075.6,3.83801148]
[1720531917402,0.23703,3077.2,3075.6,3.773]
[1720531917586,0.34017017,3076.0,3075.3,2.3001]
[1720531917781,0.260733,3077.1,3075.3,2.3001]
[1720531918033,0.34017397,3076.0,3075.3,2.3001]
[1720531918541,0.34017424,3075.9,3075.1,3.773]
[1720531920394,0.34017424,3075.9,3074.6,7.02545]
[1720531920395,2.73837424,3075.9,3074.6,7.02545]
[1720531920583,2.73837424,3075.9,3074.8,3.25216]
[1720531920584,0.34017424,3075.9,3074.8,3.25216]
[1720531920794,0.34017424,3075.9,3075.0,3.25201]
[1720531921629,3.0,3076.4,3075.0,3.25201]
[1720531921837,2.3982,3076.5,3075.4,3.2516]
[1720531921984,2.3982,3076.5,3075.1,3.83802126]
[1720531921985,2.3982,3076.5,3075.2,3.25175]
[1720531922180,2.3982,3076.5,3075.1,3.773]
[1720531922385,2.3982,3076.5,3074.6,3.773]
[1720531922726,2.3982,3076.5,3074.4,2.3677]
[1720531923032,0.55,3076.4,3074.5,3.25253]
[1720531923183,1.13272,3076.4,3074.5,3.25253]
[1720531923394,4.13272,3076.4,3074.5,3.25253]
[1720531923889,2.3521,3076.3,3074.4,5.62027]
[1720531924099,0.648482,3076.2,3074.5,3.0]
[1720531924315,3.648482,3076.2,3074.4,5.62027]
[1720531924528,3.648482,3076.2,3074.5,3.25255]
[1720531924757,3.0,3076.2,3075.0,3.773]
[1720531925039,3.0,3076.2,3075.1,0.06501941]
[1720531925338,2.3521,3076.3,3075.1,0.06501941]
[1720531925641,2.3521,3076.3,3075.1,3.25191]
[1720531926099,2.3442,3076.8,3075.6,3.25139]
[1720531926311,2.3442,3076.8,3075.7,0.06500672]
[1720531926532,2.3442,3078.2,3076.0,3.773]
[1720531926684,0.34019922,3077.9,3076.1,0.06500182]
[1720531927438,0.33993762,3078.1,3076.1,3.31586182]
[1720531927810,0.33993762,3078.1,3076.5,3.773]
[1720531928022,0.33993762,3078.1,3076.6,0.0649916]
[1720531928244,2.3442,3078.2,3076.6,0.0649916]
[1720531928457,0.23442,3078.1,3076.5,7.02343]
[1720531928609,0.23442,3078.1,3076.7,0.06498884]
[1720531928809,0.23442,3078.1,3076.5,7.02343]
[1720531929350,0.23442,3078.1,3076.5,3.773]
[1720531929550,0.29182476,3078.0,3076.5,3.773]
[1720531929910,0.29182476,3078.0,3076.0,3.773]
[1720531930108,0.29182476,3078.0,3076.1,3.0]
[1720531930346,0.29182476,3078.0,3076.1,6.25086]
[1720531930550,0.29182476,3078.0,3076.2,0.06500191]
[1720531930760,0.29182476,3078.0,3076.6,3.773]
[1720531931061,0.29182476,3078.0,3076.7,0.06499158]
[1720531931265,0.32918248,3077.9,3076.7,0.06499158]
[1720531931408,0.32918248,3077.9,3076.6,3.773]
[1720531931847,0.32918248,3077.9,3076.1,6.773]
[1720531932314,0.55,3077.8,3076.1,10.02385]
[1720531932538,0.32918248,3077.9,3076.2,0.06499686]
[1720531932747,0.32918248,3077.9,3076.3,3.31563156]
[1720531933858,0.32918248,3077.9,3076.3,0.06499156]
[1720531934207,0.32918248,3077.9,3076.1,3.773]
[1720531934413,2.2513,3077.7,3075.6,6.0386]
[1720531934608,5.2513,3077.7,3075.6,6.0386]
[1720531934814,5.2513,3077.7,3075.9,3.25099]
[1720531935055,5.2513,3077.7,3076.1,3.773]
[1720531935271,5.2513,3077.7,3076.2,0.06499921]
[1720531935613,5.2513,3077.7,3076.3,0.06499916]
[1720531935814,0.33961191,3078.1,3076.6,7.02328]
[1720531936039,2.3911,3078.3,3076.8,3.25006]
[1720531936267,2.3911,3078.3,3077.2,3.773]
[1720531936479,2.3911,3078.3,3077.3,0.06498038]
[1720531937267,2.3911,3078.3,3077.3,0.0649783]
[1720531937431,0.27312992,3078.2,3077.2,3.773]
[1720531937618,3.27312992,3078.2,3077.2,3.773]
[1720531938213,3.27312992,3078.2,3076.7,3.773]
[1720531938418,3.27312992,3078.2,3076.7,3.83798045]
[1720531938652,0.56642299,3078.1,3076.7,3.83798045]
[1720531938880,0.56642299,3078.1,3076.7,3.83798044]
[1720531939073,0.56642299,3078.1,3076.8,3.31510042]
[1720531939367,3.27312992,3078.2,3076.8,3.31510042]
[1720531940655,3.0,3078.2,3076.8,3.31510042]
[1720531940827,5.3911,3078.3,3076.9,3.25]
[1720531941156,5.3911,3078.3,3077.0,0.06497894]
[1720531941157,3.0,3078.2,3077.0,0.06497894]
[1720531941529,5.3911,3078.3,3077.0,0.06497894]
[1720531941951,3.0,3078.3,3077.2,7.0227]
[1720531942153,3.0,3078.7,3077.3,0.06497223]
[1720531942359,3.0,3078.7,3077.2,7.0227]
[1720531942744,3.0,3078.7,3077.2,3.773]
[1720531942951,3.0,3078.7,3077.2,7.0227]
[1720531943346,2.4834,3078.8,3077.2,7.0227]
[1720531943576,0.58855434,3078.7,3077.2,7.0227]
[1720531943869,3.58855434,3078.7,3077.2,7.0227]
[1720531944283,3.58855434,3078.7,3077.2,10.27233]
[1720531944495,3.58855434,3078.7,3077.3,5.57319]
[1720531944781,3.58855434,3078.7,3077.4,3.31445226]
[1720531944974,3.58855434,3078.7,3077.3,2.38856931]
[1720531945143,3.58855434,3078.7,3077.3,2.3236]
[1720531945337,3.58855434,3078.7,3077.3,5.63816037]
[1720531946139,3.58855434,3078.7,3077.3,2.38857037]
[1720531946453,3.58855434,3078.7,3077.3,2.3236]
[1720531947158,3.58855434,3078.7,3077.2,3.773]
[1720531948462,3.58855434,3078.7,3077.3,0.06497527]
[1720531948663,3.58855434,3078.7,3077.3,3.31455527]
[1720531949439,3.34021434,3078.7,3077.3,3.31455527]
[1720531949743,3.0,3078.7,3077.5,3.24938]
[1720531949943,3.0,3078.7,3077.6,0.06496786]
[1720531950138,2.4834,3078.8,3077.6,0.06496786]
[1720531950347,7.41,3079.3,3077.7,6.2207]
[1720531950690,0.34014491,3079.2,3078.5,2.4477]
[1720531950978,7.41,3080.0,3078.6,0.0649474]
[1720531951176,0.9699,3079.9,3078.5,2.4477]
[1720531951375,2.289,3080.1,3078.5,2.4477]
[1720531951676,0.34006835,3079.8,3078.3,3.773]
[1720531952179,0.34006835,3079.8,3078.4,0.06495283]
[1720531952367,0.34006835,3079.8,3078.4,3.31333283]
[1720531953155,0.34006835,3079.8,3078.5,3.24827]
[1720531953356,0.34006835,3079.8,3078.4,3.31333283]
[1720531953567,0.34006835,3079.8,3078.5,3.24832]
[1720531953944,0.34006835,3079.8,3078.6,0.06494311]
[1720531954150,0.34006835,3079.8,3078.6,3.31313311]
[1720531954384,0.34006835,3079.8,3078.6,0.06494311]
[1720531954747,0.34006835,3079.8,3078.7,0.06494692]
[1720531954955,0.34006835,3079.8,3078.7,3.31303692]
[1720531955141,3.0,3080.0,3078.8,3.83794028]
[1720531955342,7.41,3080.5,3079.0,2.4509]
[1720531955569,7.41,3080.5,3079.3,3.773]
[1720531955784,2.4831,3080.6,3079.3,3.773]
[1720531956182,2.82317166,3080.6,3079.3,3.773]
[1720531956574,3.16244328,3080.6,3079.3,3.773]
[1720531956962,0.31624433,3080.5,3079.3,3.773]
[1720531957845,3.31624433,3080.5,3079.3,3.773]
[1720531958591,3.0,3080.5,3079.3,3.773]
[1720531960055,0.34007166,3080.6,3079.3,3.773]
[1720531960255,0.34007166,3080.6,3079.4,0.06492892]
[1720531960456,0.34007166,3080.6,3079.3,7.02045]
[1720531960767,0.34007166,3080.6,3079.3,3.773]
[1720531961083,0.34007166,3080.6,3079.3,7.08540961]
[1720531961283,0.34007166,3080.6,3079.3,10.33288961]
[1720531961503,0.34007166,3080.6,3079.3,7.08540961]
[1720531962285,0.34007166,3080.6,3079.3,3.773]
[1720531963516,0.34007166,3080.6,3079.0,2.4509]
[1720531964009,2.473,3080.5,3079.0,2.4509]
[1720531964206,5.473,3080.5,3079.0,5.4509]
[1720531965303,5.473,3080.5,3079.0,8.76363531]
[1720531965639,5.473,3080.5,3079.2,3.24758]
[1720531965932,5.473,3080.5,3079.3,3.773]
[1720531969225,0.33933895,3080.4,3078.8,3.773]
[1720531969432,3.33933895,3080.4,3078.9,3.0]
[1720531969581,4.25458001,3080.4,3078.9,3.06494232]
[1720531969917,4.25458001,3080.4,3078.9,6.31279232]
[1720531970120,3.33933895,3080.4,3079.1,3.2477]
[1720531970417,3.0,3080.4,3079.1,3.31263154]
[1720531970619,5.473,3080.5,3078.9,3.0]
[1720531970828,0.28130717,3080.4,3078.9,3.0]
[1720531971029,3.28130717,3080.4,3078.9,3.0]
[1720531971632,3.28130717,3080.4,3078.9,6.2479]
[1720531971923,3.0,3080.4,3079.0,3.24779]
[1720531972123,5.473,3080.5,3079.0,3.24779]
[1720531972716,5.473,3080.5,3079.4,2.3409]
[1720531972916,5.473,3080.5,3079.3,3.773]
[1720531973295,3.0,3080.5,3079.4,2.3409]
[1720531973497,3.0,3080.9,3079.4,2.3409]
[1720531973929,0.34006688,3080.8,3079.4,2.3409]
[1720531974493,3.0,3080.9,3079.4,2.3409]
[1720531975004,3.0,3080.9,3079.4,2.40582881]
[1720531975187,2.472,3081.3,3079.8,3.773]
[1720531975395,2.472,3081.3,3079.9,3.31175896]
[1720531975588,2.2866,3081.8,3080.3,3.773]
[1720531975815,2.4438,3082.3,3080.4,2.3034]
[1720531976016,2.4438,3082.3,3080.8,3.773]
[1720531976230,2.2691,3082.7,3080.9,2.4806]
[1720531976530,2.2691,3082.7,3081.3,3.773]
[1720531977495,2.2691,3082.7,3081.0,3.24562]
[1720531977735,2.2691,3082.7,3081.1,6.31046803]
[1720531977942,2.2691,3082.7,3081.1,3.0]
[1720531978109,0.22691,3082.6,3081.0,3.0]
[1720531978457,0.22691,3082.6,3080.8,3.773]
[1720531978796,0.22691,3082.6,3080.4,2.4421]
[1720531978997,0.55,3082.5,3080.4,2.4421]
[1720531979235,0.55,3082.5,3079.5,2.4421]
[1720531979236,3.428,3082.0,3079.5,2.4421]
[1720531979443,3.428,3082.0,3079.9,3.773]
[1720531979681,4.4509,3082.1,3079.9,3.773]
[1720531979682,7.76589,3081.9,3079.9,3.773]
[1720531979837,6.978,3081.9,3079.9,3.773]
[1720531980038,3.55,3081.9,3079.9,3.83791898]
[1720531980238,3.0,3082.0,3080.4,3.773]
[1720531980545,2.4969,3082.1,3080.4,3.773]
[1720531980546,2.74659,3082.1,3080.4,3.773]
[1720531980900,0.55,3082.0,3080.4,3.773]
[1720531981057,0.329659,3081.9,3080.0,2.3554]
[1720531981380,0.329659,3081.9,3080.0,5.3554]
[1720531981536,0.55,3081.8,3080.0,2.3554]
[1720531981742,0.55,3081.8,3079.4,6.67538]
[1720531981743,2.3546,3081.7,3079.5,3.24721]
[1720531981965,2.7853659,3081.7,3079.6,3.0]
[1720531982272,2.7853659,3081.7,3079.5,6.24723]
[1720531982273,3.55,3081.6,3079.5,6.24723]
[1720531982435,4.52633659,3081.6,3079.5,3.0]
[1720531982641,7.95433659,3081.6,3079.4,3.773]
[1720531982863,3.428,3081.4,3078.9,3.773]
[1720531983064,1.13945,3081.3,3079.0,3.24771]
[1720531983294,3.55,3081.3,3079.4,3.773]
[1720531983451,0.55,3081.3,3079.4,3.773]
[1720531984442,3.978,3081.3,3079.4,3.773]
[1720531984781,3.0,3081.2,3079.4,3.773]
[1720531985084,1.2478,3081.1,3079.4,3.773]
[1720531985639,0.55,3081.1,3079.4,3.773]
[1720531985979,0.55,3081.3,3079.4,3.773]
[1720531986490,3.0,3081.4,3079.5,3.31209863]
[1720531986686,0.88945,3081.3,3079.5,3.31209863]
[1720531986837,3.0,3081.4,3079.5,0.06492863]
[1720531987051,5.4665,3081.5,3079.5,0.06492863]
[1720531987253,5.8945,3081.5,3079.4,3.773]
[1720531987480,3.54665,3081.4,3079.4,3.773]
[1720531987754,3.54665,3081.4,3079.5,0.06492761]
[1720531987968,3.54665,3081.4,3079.5,0.06492236]
[1720531988584,0.33952684,3081.3,3079.5,0.06492236]
[1720531988796,0.33952684,3081.3,3079.5,3.31216236]
[1720531989103,0.33952684,3081.3,3079.9,3.773]
[1720531989267,2.4665,3081.5,3080.1,3.24658]
[1720531989468,2.4665,3081.5,3080.2,0.06491158]
[1720531990374,2.4665,3081.5,3080.1,3.24658]
[1720531990575,7.41,3081.8,3080.2,0.06491159]
[1720531990803,3.0,3081.7,3080.2,0.06491159]
[1720531990989,3.0,3081.7,3079.9,3.773]
[1720531990990,2.9714,3081.6,3079.9,3.773]
[1720531991308,3.33963113,3081.5,3079.6,5.4559]
[1720531991585,1.18110311,3081.4,3079.4,7.02037]
[1720531991790,1.18110311,3081.4,3079.5,3.06492534]
[1720531991992,0.63110311,3081.4,3079.5,3.0]
[1720531992193,3.428,3081.0,3078.8,0.6753146]
[1720531992392,2.4677,3080.9,3078.7,0.06493992]
[1720531992580,2.4677,3080.9,3078.6,2.46243972]
[1720531992581,2.4677,3080.8,3078.6,2.46243972]
[1720531992758,2.4677,3080.6,3078.5,7.02125]
[1720531992964,5.4677,3080.6,3078.5,7.02125]
[1720531993161,5.8957,3080.4,3078.5,3.773]
[1720531993463,5.8957,3080.4,3078.1,3.24868]
[1720531993464,2.4677,3080.2,3078.1,3.24868]
[1720531993695,2.4677,3080.2,3078.1,3.31361134]
[1720531993994,0.55,3080.1,3078.3,3.24854]
[1720531994178,3.0,3080.1,3078.5,3.773]
[1720531994388,5.4677,3080.2,3078.7,2.4514]
[1720531994593,5.4677,3080.2,3079.0,3.773]
[1720531994762,3.0,3080.6,3079.5,3.773]
[1720531994962,5.2531,3080.7,3079.6,0.06492895]
[1720531995164,2.2531,3080.7,3079.6,0.06492895]
[1720531995986,2.2531,3080.7,3079.5,3.773]
[1720531996561,5.2531,3080.7,3079.5,3.773]
[1720531998893,5.2531,3080.7,3079.0,6.773]
[1720531999103,5.2531,3080.7,3079.0,10.08572304]
[1720531999607,5.2531,3080.7,3079.0,6.83793304]
[1720531999807,1.45728661,3080.6,3078.7,2.4514]
[1720532000018,4.98259661,3080.6,3078.5,3.773]
[1720532000306,0.90728661,3080.5,3078.5,3.773]
[1720532000476,3.0015,3080.4,3078.5,3.773]
[1720532000670,3.90728661,3080.3,3078.5,3.773]
[1720532000896,1.59805744,3080.2,3078.5,3.773]
[1720532001657,1.93781583,3080.2,3078.5,3.773]
[1720532002687,2.4949,3080.0,3078.2,5.4621]
[1720532002889,0.90717878,3079.9,3078.0,3.773]
[1720532003201,4.21166878,3079.9,3078.0,3.773]
[1720532003403,1.45717878,3079.8,3078.0,3.773]
[1720532003767,0.90703577,3079.7,3078.0,3.773]
[1720532003978,1.45703577,3079.8,3078.1,0.06495928]
[1720532004201,0.385449,3079.7,3078.1,0.06495928]
[1720532004506,0.385449,3079.7,3078.1,3.06495928]
[1720532004686,3.0,3079.8,3078.3,3.24844]
[1720532004893,2.4949,3080.0,3078.4,0.06494724]
[1720532005091,2.4949,3080.0,3078.6,5.66649]
[1720532005291,2.4949,3080.0,3078.7,0.06493916]
[1720532005461,4.0993,3081.7,3079.0,3.773]
[1720532005664,0.90707628,3080.5,3079.1,0.06493919]
[1720532005915,0.90707628,3080.8,3079.1,0.06493919]
[1720532006405,1.24681097,3080.8,3079.1,0.06493919]
[1720532006711,0.3507511,3080.7,3079.0,7.0856519]
[1720532007003,1.24681097,3080.8,3079.5,3.773]
[1720532007164,2.2607,3080.9,3079.6,0.06492573]
[1720532009763,2.2607,3080.9,3079.5,3.773]
[1720532010101,2.60037803,3080.9,3079.2,3.31244037]
[1720532010269,3.0,3080.8,3079.3,3.0]
[1720532011031,3.0,3080.8,3079.3,6.24748]
[1720532011525,3.0,3080.8,3079.3,3.0]
[1720532011687,3.0,3080.8,3079.1,3.24764]
[1720532011688,3.0,3080.8,3079.2,3.0]
[1720532011888,0.5600378,3080.8,3079.2,6.24755]
[1720532012089,3.0,3080.8,3079.2,6.24755]
[1720532012321,2.2607,3080.9,3079.2,6.24755]
[1720532012688,2.2607,3080.9,3079.3,3.31241171]
[1720532013288,2.2607,3080.9,3079.2,3.0]
[1720532013529,0.90702823,3080.8,3079.2,3.06492897]
[1720532013728,0.90702823,3080.8,3079.2,3.0]
[1720532013729,4.22382421,3080.8,3079.2,3.0]
[1720532013889,4.22382421,3080.8,3079.0,3.06493177]
[1720532013890,0.90705139,3080.7,3079.0,3.06493177]
[1720532014637,0.90705139,3080.7,3079.1,3.24769]
[1720532014929,3.31677282,3080.8,3079.2,3.0]
[1720532015123,1.49870162,3080.7,3079.2,3.0]
[1720532015336,1.49870162,3080.7,3079.0,6.24779]
[1720532015688,1.49870162,3080.7,3079.0,3.0]
[1720532016027,2.8697,3080.6,3078.7,3.773]
[1720532016332,2.8697,3080.6,3078.2,14.39159]
[1720532016333,2.4311,3080.4,3078.2,14.39159]
[1720532016538,2.4311,3080.2,3078.2,3.773]
[1720532016693,0.90698808,3080.1,3078.2,3.773]
[1720532016894,3.0,3080.1,3078.2,3.773]
[1720532017115,0.90693679,3080.0,3078.2,3.773]
[1720532017320,3.90693679,3080.1,3078.2,3.773]
[1720532017513,2.39074047,3080.0,3078.2,3.773]
[1720532017717,3.21673679,3079.9,3078.2,3.773]
[1720532018019,4.45693679,3079.8,3078.2,3.773]
[1720532018218,0.90693679,3079.7,3078.2,3.773]
[1720532018441,3.55,3079.8,3078.2,3.773]
[1720532018663,0.58598,3079.7,3077.7,3.24909]
[1720532018831,1.49272888,3079.7,3077.8,0.06495633]
[1720532019028,2.8821,3079.6,3077.7,3.773]
[1720532019254,3.90674888,3079.5,3077.7,3.773]
[1720532019449,3.90674888,3079.5,3078.8,0.0327]
[1720532019450,3.0,3079.5,3078.8,0.0327]
[1720532019650,0.90676981,3079.4,3078.8,0.0327]
[1720532019852,3.0,3079.5,3078.8,0.0327]
[1720532020039,0.63863729,3079.4,3078.8,0.0327]
[1720532021961,2.3509,3079.3,3078.8,0.0327]
[1720532022169,5.3509,3079.3,3078.8,0.0327]
[1720532022619,3.0,3079.2,3078.8,0.0327]
[1720532022821,2.3509,3079.3,3078.8,0.0327]
[1720532023123,0.23509,3079.2,3078.8,0.0327]
[1720532023571,3.23509,3079.2,3078.8,0.0327]
[1720532024433,3.0,3079.2,3078.8,0.0327]
[1720532024664,7.41,3079.9,3078.8,0.0327]
[1720532024857,1.45604575,3079.8,3078.8,0.0327]
[1720532025059,1.79582074,3079.8,3078.8,0.0327]
[1720532025260,1.24582074,3079.8,3078.8,0.0327]
[1720532025425,2.3781,3080.1,3078.8,0.0327]
[1720532025625,0.23781,3080.0,3078.8,0.0327]
[1720532025866,3.0,3080.0,3078.8,0.0327]
[1720532026047,2.3781,3080.1,3078.8,0.0327]
[1720532026268,2.3781,3080.1,3078.8,0.09764199]
[1720532026633,0.41204867,3081.1,3079.0,3.428]
[1720532026937,2.3533,3082.1,3079.0,3.428]
[1720532026938,0.33998813,3081.4,3080.6,3.24604]
[1720532027139,0.33961533,3081.2,3080.7,3.83789792]
[1720532027466,0.33998813,3081.4,3080.7,3.83789792]
[1720532027467,2.4675419,3082.9,3080.9,2.2531]
[1720532027766,0.90595539,3082.8,3081.0,3.3105784]
[1720532027950,0.33734973,3082.7,3081.0,3.3105784]
[1720532028321,0.33734973,3082.7,3081.1,3.24558]
[1720532028684,0.33734973,3082.7,3081.0,0.0648884]
[1720532028827,0.33734973,3082.7,3081.0,3.3104984]
[1720532030353,0.33734973,3082.7,3080.9,2.2531]
[1720532030537,0.33734973,3082.7,3080.9,5.49889]
[1720532031278,0.33734973,3082.7,3081.0,0.06489374]
[1720532031626,0.33734973,3082.7,3080.9,5.56378374]
[1720532031831,0.33734973,3082.7,3080.9,2.31799374]
[1720532032050,0.33734973,3082.7,3080.9,2.2531]
[1720532032369,0.33734973,3082.7,3080.8,0.06489374]